[Event "Rapid Shavuot-A 2023"]
[Site "Ramat Gan"]
[Date "2023.05.25"]
[Round "3.9"]
[White "Mordechai, Hanan"]
[Black "Katz, Kiril"]
[Result "0-1"]
[ECO "B54"]
[WhiteElo "2366"]
[BlackElo "2016"]
[Annotator "TA"]
[PlyCount "176"]
[EventDate "2023.05.19"]
[EventType "swiss"]
[EventCountry "ISR"]
[SourceTitle "playchess.com"]
[Source "ChessBase"]
[SourceQuality "1"]
[TimeControl "900+5"]

{[%evp 10,176,28,12,65,45,63,60,62,64,85,68,64,39,90,79,79,82,76,64,60,73,70,60,91,77,114,117,175,0,76,-30,0,0,0,0,0,-1,0,0,0,-129,0,-32,-36,-36,0,0,223,-142,-131,-147,-133,-138,-41,-127,-132,-146,44,-33,0,-119,-119,-112,-77,-75,-69,-97,-42,-82,16,0,0,0,0,-51,-70,-64,0,0,0,0,0,-8,0,-208,0,0,0,0,529,529,529,529,525,519,502,494,504,427,409,430,424,412,990,0,0,0,0,0,0,0,0,0,0,0,0,0,0,0,0,0,0,0,0,0,0,0,0,0,0,0,0,0,0,-157,-157,-168,0,0,0,-258,-195,-233,-233,-29980,-29981,-29981,-29982,-29981,-29979,-29983,0,-29977,-29978,-29977,-29978,-29979,-29980,-29981,-29974,-29977,-29977,-29987,-29988,-29988,-29989,-29989,-29979]} 1. e4 {[%emt 0:00:03]} c5 {[%emt 0:00:01]} 2. Nf3 {[%emt 0:00:01][%cal Bg1f3,Bf3d4,Bd4f5,Bf5e3,Be3d5][%mdl 32]} Nc6 {[%emt 0:00:01]} 3. Nc3 {[%emt 0:00:02]} d6 {[%emt 0:00:37]} 4. d4 {[%emt 0:00:02]} cxd4 {[%emt 0:00:01]} 5. Nxd4 {[%emt 0:00:02]} e5 {[%emt 0:00:02]} 6. Nf5 {[%emt 0:00:07]} g6 {[%emt 0:00:30] B54: Sicilian: 2...d6 3 d4 cxd4 4 Nxd4, Unusual Lines .} (6... Bxf5 $11 7. exf5 Nf6) 7. Ne3 $14 {[%emt 0:00:05]} Be6 {[%emt 0:01:02]} 8. Ned5 {[%emt 0:00:05] [#]} Bg7 $146 {[%emt 0:00:15] White is slightly better.} ({Predecessor:} 8... Rc8 9. Be3 Bg7 10. Qd2 Nge7 11. Bg5 h6 12. Nxe7 Nxe7 13. Be3 a6 14. O-O-O Rc6 {0-1 Ganguly,S (2589)-Adhiban,B (2603) MPL Indian Chess Tour N3 rapid 2022 (15)}) 9. h4 {[%emt 0:00:08]} h6 {[%emt 0:00:20]} 10. Be3 {[%emt 0:00:04]} Nf6 {[%emt 0:00:45]} 11. f3 {[%emt 0:00:33]} O-O {[%emt 0:01:50]} (11... Nd4 $14) 12. Qd2 $16 {[%emt 0:00:12]} Nd4 {[%emt 0:00:19]} 13. O-O-O {[%emt 0:00:20]} Bxd5 {[%emt 0:00:44]} 14. exd5 {[%emt 0:00:20]} Nf5 {[%emt 0:00:01][%cal Oe5e4]} 15. Bf2 {[%emt 0:00:40]} h5 {[%emt 0:00:01]} 16. Kb1 {[%emt 0:00:03]} Bh6 {[%emt 0:00:45]} 17. Qe1 {[%emt 0:00:03]} Re8 {[%emt 0:01:20]} 18. Bd3 {[%emt 0:00:20][%cal Og2g4]} Nd4 {[%emt 0:00:01]} (18... Ng7 $16) 19. Be4 $2 {[%emt 0:00:03]} (19. Ne4 $1 $18) 19... Nxe4 {[%emt 0:00:21]} (19... Rc8 $11) 20. fxe4 {[%emt 0:00:48]} (20. Qxe4 $16 {Hoping for g4.} b5 21. Qd3 (21. Bxd4 exd4 22. Qxd4 Bg7 $11)) 20... Bg7 {[%emt 0:00:02]} 21. g4 {[%emt 0:00:45]} hxg4 {[%emt 0:01:23]} 22. h5 {[%emt 0:00:01]} Nf3 {[%emt 0:00:01] Against Qg1} 23. Qf1 {[%emt 0:00:34]} Qg5 {[%emt 0:00:00]} (23... f5 {seems wilder.} 24. hxg6 Qf6 25. Qg2 Qxg6 26. Rh3 Kf7) 24. hxg6 {[%emt 0:00:08]} Qxg6 {[%emt 0:00:02]} 25. Qg2 {[%emt 0:00:16]} (25. Be3 $11 {keeps the balance.}) 25... f5 {[%emt 0:00:20]} (25... Rac8 $17 {[%cal Oc8c3] aiming for ...Rxc3!} 26. Be1 Rc4) 26. exf5 Qxf5 {[%emt 0:00:00]} 27. Be3 {[%emt 0:01:14]} Rac8 {[%emt 0:00:38]} 28. Nb5 $1 {[%emt 0:01:53]} Qd7 {[%emt 0:02:17]} (28... Red8 $11) 29. Qe2 $2 {[%emt 0:00:32]} (29. Nxd6 $1 $18 Qxd6 30. Qxg4) 29... a6 $17 {[%emt 0:00:16]} 30. Nc3 {[%emt 0:00:33]} Qf5 $36 {[%emt 0:00:15][%mdl 2048] Wards off Ne4. Black is really pushing.} 31. Bh6 {[%emt 0:00:19]} Re7 {[%emt 0:01:09] Black is more active.} (31... Rf8 $17 32. Bc1 b5) 32. Ne4 {[%emt 0:02:25]} (32. Qe4 $1 $15 Qxe4 33. Nxe4) 32... Qg6 $1 {[%emt 0:00:00]} 33. Qe3 {[%emt 0:00:21]} Nd4 $2 {[%emt 0:00:16]} (33... Rc4 $17 34. Nc3 Rec7 35. Bxg7 Kxg7) 34. Bxg7 {[%emt 0:00:10]} (34. Rdg1 $1 $14 Rxc2 35. Bxg7) 34... Kxg7 {[%emt 0:00:27]} 35. c3 {[%emt 0:02:00]} (35. Rdg1 $1 $11 Rh8 36. Rxh8 Kxh8 37. Qf2) 35... Nf5 $1 {[%emt 0:00:01]} 36. Qd3 {[%emt 0:00:09]} Ree8 {[%emt 0:00:27]} 37. Rhg1 {[%emt 0:00:12]} Rh8 {[%emt 0:00:12]} 38. Ka1 {[%emt 0:00:08]} Rh4 {[%emt 0:00:09]} (38... Rcf8 $1 $17 {Threatens to win with ...Rh3.} 39. Qe2 Rh4) 39. Rdf1 {[%emt 0:00:26]} Rch8 {[%emt 0:00:09]} ({Black should play} 39... Rh3 $1 $17 {[%cal Rh3d3]} 40. Qb1 Rch8) 40. Qc4 {[%emt 0:00:19][%mdl 1024] White has compensation.} Rf8 {[%emt 0:01:25]} (40... Ne3 $2 41. Qc7+ Kh6 42. Rf6 $18 (42. Nxd6 Nc2+ 43. Kb1 Na3+ {[%mdl 64] Discovered Attack (Double check)} 44. Ka1 Qb1+ 45. Rxb1 Nc2#) (42. Nxd6 Nc2+ 43. Kb1 Na3+ {[%mdl 64] Discovered Attack (Double check)} 44. Ka1 Qb1+ 45. Rxb1 Nc2#)) 41. Qc7+ {[%emt 0:02:04]} Rf7 42. Qb8 {[%emt 0:00:00]} (42. Qb6 $11) 42... Rh8 $15 {[%emt 0:00:00] The board is on fire.} 43. Qa7 {[%emt 0:00:00]} g3 {[%emt 0:00:00]} ({Black should try} 43... Rh2 $1 $15 44. Qb8 g3 45. Nxg3 (45. Rxf5 $2 Rxf5 46. Nxg3 Rg5 $19) 45... Nxg3 46. Rxf7+ Kxf7 47. Qc7+ Kg8) 44. Nxg3 $1 $11 {[%emt 0:00:00]} Nxg3 {[%emt 0:00:00]} 45. Rxf7+ {[%emt 0:00:00]} Kxf7 {[%emt 0:00:00][%cal Bg7f7,Bf7f6,Bf6e7][%mdl 32]} 46. Qxb7+ {[%emt 0:00:00]} Kf6 {[%emt 0:00:00][%cal Og6e4]} 47. Qxa6 $2 {[%emt 0:00:00]} (47. Qb6 $1 $11 {and White stays safe.}) 47... Rd8 $2 {[%emt 0:00:01]} (47... Kf5 $1 $19 {And now ...Kf4 would win.} 48. Qd3+ e4) 48. Qb6 {[%emt 0:00:00]} Ke7 {[%emt 0:00:05][%cal Og6e4]} 49. Qa7+ {[%emt 0:00:00]} Rd7 $2 {[%emt 0:00:01][%mdl 8192]} (49... Ke8 $1 $11) 50. Qf2 $18 {[%emt 0:00:00]} Qf7 {[%emt 0:00:21]} 51. Qxf7+ Kxf7 {[%emt 0:00:01]} 52. Rxg3 {[%emt 0:00:04][%mdl 4096] Endgame KR-KR} Kf6 {[%emt 0:00:01]} 53. b4 {[%emt 0:00:07]} Kf5 {[%emt 0:00:01]} 54. Kb2 {[%emt 0:00:54]} Ke4 55. c4 {[%emt 0:00:00]} Kd4 {[%emt 0:00:00]} 56. Kb3 {[%emt 0:00:10]} e4 {[%emt 0:00:01]} (56... Rf7 $142 57. b5 e4) 57. a4 $2 {[%emt 0:00:00]} (57. Rg1 $18 e3 58. b5) 57... Rf7 $11 {[%emt 0:00:01]} 58. Rg4 {[%emt 0:00:00]} (58. Rg1 $5 Rf3+ $8 59. Kb2 $11) 58... Rf3+ {[%emt 0:00:12]} 59. Kb2 {[%emt 0:00:00]} Rf2+ {[%emt 0:00:13]} 60. Kb3 {[%emt 0:00:00]} Rf3+ {[%emt 0:00:05]} 61. Kc2 {[%emt 0:00:00]} Rc3+ {[%emt 0:00:01]} 62. Kb2 {[%emt 0:00:12][%cal Og4e4] Rxe4+! would kill now.} Rxc4 {[%emt 0:00:01]} 63. Kb3 {[%emt 0:00:03][%cal Og4e4]} Kxd5 {[%emt 0:00:24]} 64. a5 {[%emt 0:00:12]} Rc1 {[%emt 0:00:01] Wards off Rg1} 65. Kb2 {[%emt 0:00:04] Intending Rg5+ and mate.} Re1 {[%emt 0:00:02]} 66. Rg5+ {[%emt 0:00:04]} Kc4 {[%emt 0:00:02]} 67. b5 {[%emt 0:00:02] Black must now prevent b6.} (67. a6 $5 Re2+ $8 68. Ka3 $11) 67... e3 {[%emt 0:00:05] Strongly threatening ...e2.} 68. b6 {[%emt 0:00:14]} e2 {[%emt 0:00:01][%cal Oe1b1]} 69. Rg4+ {[%emt 0:00:01]} Kd5 {[%emt 0:00:23] ( -> ...Rd1)} (69... Kd3 $5 70. Rg3+ $8 Ke4 $11) 70. b7 {[%emt 0:00:08]} Rb1+ {[%emt 0:00:01][%mdl 64] Decoy} 71. Kxb1 {[%emt 0:00:02] White threatens Rg1 and mate.} e1=Q+ {[%emt 0:00:01] KQ-KR} (71... e1=R+ 72. Kc2 Re2+ 73. Kb3 Re3+ 74. Ka4 Re8 75. Rb4 Ke5 76. b8=Q Rxb8 77. Rxb8) 72. Kb2 $2 {[%emt 0:00:05] [#]} ({White must play} 72. Kc2 $11) 72... Qd2+ $1 $17 {[%emt 0:00:09]} (72... Qxa5 73. Rg5+ (73. b8=R Qd2+ 74. Ka3 Ke6 $17) 73... Kc6 74. Rxa5 Kxb7 75. Kc3 Kc7 76. Kc4 Kc6 77. Rf5) 73. Kb3 {[%emt 0:00:06] [#]} Qd1+ $2 {[%emt 0:00:02]} (73... Qxa5 {leads to mate.} 74. b8=Q (74. b8=R Qd2 $17) 74... Qa6 75. Qg8+ Ke5 76. Qe8+ Kd5 77. Qf7+ Kc5 78. Rc4+) (73... Qd3+ $1 $19 74. Ka2 Qc2+ 75. Ka1 Qc3+ 76. Ka2 Qxa5+ 77. Kb3 Qa7) 74. Kb2 $11 {[%emt 0:00:08]} Qe2+ {[%emt 0:00:07]} (74... Qxg4 $5 75. b8=Q $8 Qd4+ 76. Kb3 Qc4+ 77. Ka3 Qd3+ 78. Qb3+ Qxb3+ 79. Kxb3 Kc6 $11) 75. Ka3 $2 {[%emt 0:00:05][%mdl 8192]} (75. Kc3 $11 {and White has nothing to worry.}) 75... Qd3+ $19 {[%emt 0:00:09]} ({And not} 75... Qxg4 76. b8=Q $11 (76. b8=R $2 {too greedy.} Kc5 $19)) 76. Ka4 {[%emt 0:00:05]} Qc2+ {[%emt 0:00:08]} 77. Kb5 $2 {[%emt 0:00:03]} (77. Ka3 $19 Qc3+ 78. Ka2 Qxa5+ 79. Kb3) 77... Qc6+ {[%emt 0:00:03]} 78. Kb4 {[%emt 0:00:03]} Qxb7+ {[%emt 0:00:01]} 79. Ka3 {[%emt 0:00:02]} Qb1 {[%emt 0:00:11]} 80. Ra4 {[%emt 0:00:06]} Qb7 $2 {[%emt 0:00:10]} (80... Kc5 {mates} 81. Rh4 Qc1+ 82. Ka2 Qd2+ 83. Kb3 Qe3+ 84. Kc2 Qf2+ 85. Kd3 Qxh4 86. a6 Kd5 87. a7 Qe4+ 88. Kc3 Kc5 89. a8=B Qxa8 90. Kb3 Qf3+ 91. Kc2 Kc4 92. Kb2 Qf2+ 93. Kc1 Kc3 94. Kd1 Qf1#) 81. a6 $2 {[%emt 0:00:02][%mdl 8192]} (81. Rg4 $11 Qc8 82. Rg3) 81... Qa7 {[%emt 0:00:00] Black mates.} 82. Kb3 {[%emt 0:00:02]} Ke5 {[%emt 0:00:01]} 83. Kc3 {[%emt 0:00:26]} d5 {[%emt 0:00:29]} 84. Kd3 {[%emt 0:00:00]} Qh7+ {[%emt 0:00:00]} 85. Kc3 {[%emt 0:00:00]} Qc7+ {[%emt 0:00:00]} 86. Kd3 {[%emt 0:00:00]} Qc1 {[%emt 0:00:00]} 87. Rh4 {[%emt 0:00:14]} Qf1+ {[%emt 0:00:00]} 88. Kc2 {[%emt 0:00:01]} Qxa6 {[%emt 0:00:00] Never resign too early!   Weighted Error Value: White=0.41/Black=0.40} 0-1

[Event "Rapid Shavuot-A 2023"]
[Site "Ramat Gan"]
[Date "2023.05.25"]
[Round "3.10"]
[White "Ehrlich, Roy"]
[Black "Bodenshtein, Yair"]
[Result "1-0"]
[ECO "C26"]
[WhiteElo "2228"]
[BlackElo "1846"]
[Annotator "TA"]
[PlyCount "57"]
[EventDate "2023.05.19"]
[EventType "swiss"]
[EventCountry "ISR"]
[SourceTitle "playchess.com"]
[Source "ChessBase"]
[SourceQuality "1"]
[TimeControl "900+5"]

{[%evp 12,57,23,-19,0,-5,12,8,79,67,79,68,72,53,178,164,177,174,180,158,193,187,207,197,271,204,277,216,212,209,230,179,758,757,761,752,927,909,1081,1075,1069,1042,5512,5512,5337,5337,5337,4870]} 1. e4 {[%emt 0:00:02]} e5 {[%emt 0:00:01]} 2. Nc3 {[%emt 0:00:02]} Nf6 {[%emt 0:00:02]} 3. g3 {[%emt 0:00:01]} Bc5 {[%emt 0:00:07]} 4. Bg2 {[%emt 0:00:01]} O-O {[%emt 0:00:08]} 5. Nge2 {[%emt 0:00:01]} d6 {[%emt 0:00:11]} 6. O-O {[%emt 0:00:03][%cal Be1g1,Bg1h2,Bh2g3][%mdl 32]} Nc6 {[%emt 0:00:07]} 7. h3 {[%emt 0:00:27]} a6 {[%emt 0:00:06] C26: Vienna Game: 2...Nf6, sidelines .} 8. Kh2 {[%emt 0:00:02]} Be6 {[%emt 0:00:13]} 9. f4 {[%emt 0:00:01]} exf4 {[%emt 0:00:15]} (9... Nd4 $11) 10. d4 $16 {[%emt 0:00:01]} fxg3+ {[%emt 0:00:13]} 11. Kxg3 {[%emt 0:00:02] [#]} (11. Kh1 $5 {[%cal Rd4c5]}) 11... Ba7 $146 {[%emt 0:03:59] ...Bc4 would be deadly.} ({Predecessor:} 11... Nxd4 12. Nxd4 Bc4 13. Re1 Qd7 14. Bg5 h6 15. Bxf6 gxf6 16. Nb3 Bxb3 17. axb3 d5 {1-0 Ehrlich,R (1938)-Lomakin,V (1430) Netanya op 2019 (4)}) 12. d5 {[%emt 0:00:01]} Bxd5 {[%emt 0:00:42]} 13. Nxd5 $18 {[%emt 0:00:21]} (13. exd5 Ne5 14. Nf4 Qe7 $16) 13... Nxd5 {[%emt 0:00:24]} 14. Qxd5 {[%emt 0:00:20]} Qd7 {[%emt 0:00:26]} 15. Bd2 {[%emt 0:00:36]} Rae8 {[%emt 0:00:28]} 16. Bc3 {[%emt 0:00:16]} Re6 {[%emt 0:00:37]} 17. Kh2 {[%emt 0:00:21]} (17. Qg5 $2 Rg6 $19) 17... b5 {[%emt 0:00:49]} (17... Qc8 $142 18. Nf4 (18. Qg5 Ne5 $18) 18... Rh6) 18. a3 {[%emt 0:00:33]} ({Don't play} 18. Qg5 $6 Ne5 19. Rad1 Qc6 $18) 18... Rfe8 {[%emt 0:02:09]} 19. Ng3 {[%emt 0:00:02] And now h4 would win.} ({Don't do} 19. Qg5 $6 Ne5 20. Nf4 Be3 $18) 19... Ne5 {[%emt 0:00:35]} 20. Nf5 {[%emt 0:00:36]} Rg6 {[%emt 0:01:02]} 21. Bxe5 {[%emt 0:00:16][%mdl 64] [#] Deflection} Rxe5 {[%emt 0:00:07]} (21... c6 22. Qd3 Rxe5) 22. Qa8+ {[%emt 0:00:06] White is clearly winning.} Qe8 {[%emt 0:01:04]} 23. Qxa7 {[%emt 0:00:02]} d5 {[%emt 0:00:39]} 24. Qxc7 {[%emt 0:00:26]} dxe4 {[%emt 0:00:14]} 25. Nd6 {[%emt 0:00:15]} Rxd6 {[%emt 0:00:52]} 26. Qxd6 {[%emt 0:00:02]} e3 {[%emt 0:00:01]} 27. Bd5 {[%emt 0:00:39]} Rxd5 {[%emt 0:00:35]} 28. Qxd5 {[%emt 0:00:03]} e2 {[%emt 0:00:01] [#]} 29. Qxf7+ $3 {[%emt 0:11:52] Black got outplayed after the opening.   Weighted Error Value: White=0.20 (precise) /Black=0.37} 1-0

[Event "Rapid Shavuot-A 2023"]
[Site "Ramat Gan"]
[Date "2023.05.25"]
[Round "3.11"]
[White "Michaeli, Omri"]
[Black "Sherman, Reem"]
[Result "0-1"]
[ECO "C19"]
[WhiteElo "1874"]
[BlackElo "2306"]
[Annotator "TA"]
[PlyCount "98"]
[EventDate "2023.05.19"]
[EventType "swiss"]
[EventCountry "ISR"]
[SourceTitle "playchess.com"]
[Source "ChessBase"]
[SourceQuality "1"]
[TimeControl "900+5"]

{[%evp 14,98,0,0,0,-2,0,-9,14,25,32,49,51,39,84,-146,-149,-148,-155,-190,-172,-202,-181,-359,-224,-231,-201,-216,-140,-148,-123,-237,-168,-223,-259,-225,-250,-229,-229,-264,-261,-263,-263,-264,-258,-241,-225,-249,-245,-207,-198,-281,-277,-456,-445,-407,-400,-627,-601,-936,-574,-1185,-1179,-1202,-1188,-1159,-1138,-1465,-1464,-1393,-1228,-1494,-1292,-1378,-1076,-2855,-2811,-2415,-2373,-29981,-29983,-29989,-29990,-29990,-29990,-29990,-29991]} 1. e4 {[%emt 0:00:05]} e6 {[%emt 0:00:05]} 2. d4 {[%emt 0:00:05]} d5 {[%emt 0:00:05]} 3. Nc3 {[%emt 0:00:05]} Bb4 {[%emt 0:00:05]} 4. e5 {[%emt 0:00:05]} c5 {[%emt 0:00:05]} 5. a3 {[%emt 0:00:05]} Bxc3+ {[%emt 0:00:05]} 6. bxc3 {[%emt 0:00:05]} Ne7 {[%emt 0:00:05]} 7. a4 {[%emt 0:00:05]} Qa5 {[%emt 0:00:05]} 8. Qd2 {[%emt 0:00:24]} b6 {[%emt 0:00:20] has lost popularity (8...Nbc6). C19: French: 3 Nc3 Bb4: Main line: 7 Nf3 and 7 a4.} 9. Bb5+ {[%emt 0:00:21]} Bd7 {[%emt 0:00:32]} 10. Bd3 {[%emt 0:00:05]} Nbc6 {[%emt 0:00:50] The position is equal.} 11. Nf3 {[%emt 0:00:05]} f6 {[%emt 0:01:30]} 12. exf6 {[%emt 0:00:41]} gxf6 {[%emt 0:00:25]} 13. O-O {[%emt 0:01:43] [#]} O-O-O $146 {[%emt 0:00:36]} ({Predecessor:} 13... c4 14. Be2 Nf5 15. Ba3 h5 16. Kh1 O-O-O 17. Rfb1 Rdg8 18. Ng1 h4 19. Nh3 Nd8 {1-0 Ganz,H (2275)-Schatz,H (2339) Remote S7E Pro email 2014}) 14. Qf4 $2 {[%emt 0:00:36]} (14. dxc5 $16 {Bb5 would be deadly.} bxc5 15. c4) 14... c4 $17 {[%emt 0:00:22]} (14... Qxc3 $2 15. Ba6#) 15. Be2 {[%emt 0:00:31]} Qxc3 {[%emt 0:00:09]} 16. Bd2 {[%emt 0:01:01]} Qxc2 {[%emt 0:00:25][%cal Oe6e5]} 17. a5 {[%emt 0:00:05] [#]} b5 {[%emt 0:01:59] ...Qe4 is the strong threat.} 18. a6 $2 {[%emt 0:00:25] [#]} (18. Rfb1 a6 19. Re1) 18... e5 $1 {[%emt 0:02:34]} 19. dxe5 {[%emt 0:00:46]} fxe5 {[%emt 0:00:05]} 20. Nxe5 {[%emt 0:00:11]} Rhf8 {[%emt 0:00:18]} 21. Nxc6 {[%emt 0:00:27]} Nxc6 {[%emt 0:00:13]} 22. Qh6 {[%emt 0:00:37]} (22. Qd6 $17 Qf5 23. Ba5 Nxa5 24. Rxa5) 22... Qg6 {[%emt 0:00:05]} 23. Rab1 {[%emt 0:00:25]} (23. Qxg6 {is a better defense.} hxg6 24. Rfb1) 23... Nd4 $19 {[%emt 0:00:10]} 24. Bh5 {[%emt 0:00:27] White is weak on the light squares} Qxh6 {[%emt 0:01:09]} 25. Bxh6 {[%emt 0:00:05] [#]} Rf5 {[%emt 0:00:05]} 26. Bg4 {[%emt 0:00:16] [#]} Rg8 $1 {[%emt 0:01:24]} 27. Bxf5 {[%emt 0:00:49]} Bxf5 {[%emt 0:00:05]} 28. Rb2 {[%emt 0:01:19]} Be4 {[%emt 0:01:05]} 29. f3 {[%emt 0:00:38]} Nxf3+ {[%emt 0:00:37]} ({Weaker is} 29... Bxf3 30. Be3 c3 31. Rbf2 Ne2+ 32. Kh1 $11) 30. Rxf3 {[%emt 0:00:35]} Bxf3 {[%emt 0:00:05][%mdl 4096] Endgame KRB-KRB} 31. Be3 {[%emt 0:00:05]} Be4 {[%emt 0:00:11] Hoping for ...c3.} 32. g3 {[%emt 0:00:19]} (32. Bxa7 $142 Rg6 33. Bd4 Rxa6 34. Rxb5) 32... Rg6 {[%emt 0:00:12]} 33. Bxa7 $2 {[%emt 0:00:34]} (33. Rxb5 Rxa6 34. Kf1) 33... Rxa6 {[%emt 0:00:05]} 34. Bd4 {[%emt 0:00:05]} Ra5 {[%emt 0:00:25]} 35. Kf2 {[%emt 0:00:24]} (35. Bc3 $142 Ra3 36. Be5) 35... Kc7 {[%emt 0:00:05]} 36. Ke3 {[%emt 0:00:25]} Kc6 {[%emt 0:00:05] Strongly threatening ...Ra3+.} 37. Kf4 {[%emt 0:00:08]} Ra3 {[%emt 0:00:09]} 38. Ke5 {[%emt 0:00:11]} c3 {[%emt 0:00:15][%cal Bc4c3,Bc3c2][%mdl 32]} 39. Rf2 {[%emt 0:00:16]} b4 {[%emt 0:00:30]} 40. Rf6+ {[%emt 0:00:08]} Kb5 {[%emt 0:00:05]} 41. Rb6+ {[%emt 0:00:54]} Kc4 {[%emt 0:00:05] aiming for ...Ra8.} 42. g4 {[%emt 0:00:08]} Ra2 {[%emt 0:00:16]} 43. h4 {[%emt 0:00:07]} c2 {[%emt 0:00:16] Threatens to win with ...Kd3.} 44. g5 {[%emt 0:00:37]} Kd3 {[%emt 0:00:05]} (44... c1=R $2 {is the wrong capture.} 45. Rc6+ Kd3 46. Rxc1 $19) 45. Rc6 {[%emt 0:00:05]} Ra3 {[%emt 0:00:13]} 46. h5 {[%emt 0:00:13] [#]} Rc3 $1 {[%emt 0:00:06][%mdl 64] Promotion. Black mates.} 47. Rxc3+ {[%emt 0:00:59]} (47. Bxc3 bxc3) 47... bxc3 {[%emt 0:00:05]} 48. g6 {[%emt 0:00:05]} hxg6 {[%emt 0:00:05][%cal Bh7g6,Bg6g5][%mdl 32]} 49. h6 {[%emt 0:00:05]} g5 {[%emt 0:00:19] Weighted Error Value: White=0.78/Black=0.34} 0-1